Cogmind - Beta 15 @@@ ROGUE MODE // 2025.05.27 @ 23:15:17 Player: Skysub Result: Destroyed by 4C-JKY(R) with Subdweller Machine Gun Performance ------------- Evolutions (0) 0 Regions Visited (2) 400 Robots Destroyed (21) 105 Value Destroyed (475) 475 Prototype IDs (11) 220 Alien Tech Used (0) 0 Bonus (0) 0 TOTAL SCORE: 1200 Bonus ------- None Cogmind --------- Core Integrity 0/250 Matter 267/300 Energy 83/100 System Corruption 0% Temperature Cool (0) Movement Core (200) Ox3 Location -10/Subcaves Parts ------- > --- POWER (1) -------- (None) > --- PROPULSION (2) --- (None) > --- UTILITY (2) ------ Small Storage Unit Structural Scanner > --- WEAPON (2) ------- Medium Laser Battle Rifle > --- INVENTORY (8) ---- Subdweller Power Source Subdweller Monowheel Tower Shield Dirty Datajack (20) Mining Laser Mining Claw Peak State ------------ > --- POWER ------------ Ion Engine > --- PROPULSION ------- Light Treads Wheel > --- UTILITY ---------- Small Storage Unit Structural Scanner > --- WEAPON ----------- Light Assault Rifle Mining Claw > --- INVENTORY -------- Subdweller Power Source Compact Wheel Subdweller Monowheel Tower Shield Medium Laser Small Laser Mining Laser [Rating: 9] Favorites ----------- Power Ion Engine Engine Ion Engine Propulsion Light Treads Treads Light Treads Wheel Wheel Utility Small Storage Unit Device Structural Scanner Storage Small Storage Unit Weapon Small Laser Energy Gun Small Laser Ballistic Gun Light Assault Rifle Slashing Weapon Mining Claw Build | -11 -10 -10 ------- Run | Yrd Mat Sub Slots Evolved . | . . . Power . | . . . Propulsion . | . . . Utility . | . . . Weapon . | . . . Parts Attached 14 | 6 2 6 Power 1 | 1 . . Engine 1 | 1 . . Core . | . . . Reactor . | . . . Propulsion 5 | 2 . 3 Treads 3 | 2 . 1 Leg . | . . . Wheel 2 | . . 2 Hover . | . . . Flight . | . . . Utility 2 | 1 1 . Device 1 | . 1 . Storage 1 | 1 . . Processor . | . . . Hackware . | . . . Protection . | . . . Artifact . | . . . Weapon 6 | 2 1 3 Energy Gun 2 | 1 . 1 Energy Cannon . | . . . Ballistic Gun 3 | 1 1 1 Ballistic Cannon . | . . . Launcher . | . . . Special Weapon . | . . . Impact Weapon . | . . . Slashing Weapon 1 | . . 1 Piercing Weapon . | . . . Special Melee Weapon . | . . . Unidentified Prototypes . | . . . Parts Lost 9 | . 1 8 Power 1 | . . 1 Propulsion 5 | . . 5 Utility . | . . . Weapon 3 | . 1 2 Highest Loss Streak 5 | . 1 5 To Critical Strikes . | . . . Average Backups 6 | 3 5 6 Power 1 | . 1 1 Propulsion 2 | 1 2 2 Utility . | . . . Weapon 2 | . 2 2 Tool/Special . | . . . Unused Backups 7 | . . 7 Power 2 | . . 2 Propulsion 2 | . . 2 Utility 1 | . . 1 Weapon 1 | . . 1 Tool/Special 1 | . . 1 Average Slot Usage (%) 90 | . 84 93 Engine 11 | . 14 10 Treads 22 | . 28 20 Wheel 3 | . . 4 Device 10 | . . 14 Storage 14 | . 14 14 Energy Gun 13 | . 14 12 Ballistic Gun 12 | . 12 12 Slashing Weapon 1 | . . 1 Peak Build Rating 9 | 6 7 9 Average Rating 6 | 4 5 7 On Entrance 4 | . 6 7 Naked Turns . | . . . Heaviest Build 14 | 13 13 14 Greatest Support 40 | 40 40 40 Greatest Overweight (x) 3 | 3 . 3 Average Overweight (x) . | . . . Largest Inventory Capacity 8 | 8 8 8 Average Capacity 7 | 7 8 8 Most Carried 8 | 5 7 8 Average Carried 6 | 3 5 7 Final Capacity 8 | 8 8 8 Final Carried 7 | 5 7 7 Class Distribution -------------------- 100% | Mutant Dominant Class ---------------- Mutant | -10/Materials Mutant | -10/Subcaves Resources | -11 -10 -10 ----------- Run | Yrd Mat Sub Matter Collected 412 | 212 149 51 Remotely . | . . . Salvage Created 715 | 164 343 208 Parts 43 | 12 21 10 Haulers Intercepted 1 | . 1 . Recyclers Shooed . | . . . Parts Field Recycled . | . . . Retrieved Matter . | . . . Parts Self-Destructed . | . . . Prevented . | . . . Kills | -11 -10 -10 ------- Run | Yrd Mat Sub Combat Hostiles Destroyed 14 | . 9 5 Guns 14 | . 9 5 Classes Destroyed 7 | 2 4 1 Builder 1 | . 1 . Tunneler 4 | 4 . . Hauler 1 | . 1 . Recycler 1 | 1 . . Swarmer 3 | . 3 . Grunt 6 | . 6 . Subdweller 5 | . . 5 Best Kill Streak 6 | 5 6 1 Combat Bots Only 4 | . 4 1 Max Kills in Single Turn 1 | 1 1 1 Gunslinging . | . . . Exploded . | . . . Melee . | . . . Uniques/NPCs Destroyed . | . . . Combat | -11 -10 -10 -------- Run | Yrd Mat Sub Hostile Shots Fired 105 | . 59 46 Missed 28 | . 15 13 Hits 77 | . 44 33 Projectile 77 | . 44 33 AOE 1 | . . 1 Damage Taken 1310 | . 458 852 Core 269 | . 76 193 Absorbed by Shields . | . . . Core Remaining (%) 100 | 100 . . Volleys Fired 70 | 8 35 27 Largest 2 | 2 2 2 Hottest 90 | 60 60 90 Shots Fired 124 | 15 59 50 Gun 124 | 15 59 50 Cannon . | . . . Launcher . | . . . Special . | . . . Kinetic 50 | 8 24 18 Thermal 74 | 7 35 32 Explosive . | . . . Electromagnetic . | . . . Robot Hit Streak 22 | 6 6 22 Robot Miss Streak 3 | 1 3 1 Penetration Max . | . . . Secondary Targets 2 | . 2 . Max Gunslinging Chain 1 | . 1 . Shots Hit Robots 91 | 12 36 43 Core Hits 38 | 6 18 14 Critical Kills 1 | 1 . . Critical Parts Destroyed . | . . . Critical Strikes 5 | 1 . 4 Burn 3 | . . 3 Destroy 2 | 1 . 1 Melee Attacks 7 | . . 7 Impact . | . . . Slashing 7 | . . 7 Piercing . | . . . Sneak Attacks . | . . . Combat Hostiles . | . . . Follow-up Attacks . | . . . Damage Inflicted 1069 | 152 424 493 Guns 1041 | 149 424 468 Cannons . | . . . Explosions . | . . . Melee 25 | . . 25 Ramming 3 | 3 . . Kinetic 394 | 80 157 157 Thermal 647 | 69 267 311 Explosive . | . . . Electromagnetic . | . . . Impact . | . . . Slashing 25 | . . 25 Piercing . | . . . Highest Corruption . | . . . Average Corruption . | . . . Corruption Purged . | . . . Corruption Blocked . | . . . Overload Shots . | . . . Overflow Damage . | . . . Projectiles . | . . . Explosions . | . . . Melee . | . . . Knockbacks . | . . . Impact . | . . . Kinetic . | . . . Secondary . | . . . Self-Inflicted Damage . | . . . Shots . | . . . Rammed 1 | 1 . . Targets Rammed 1 | 1 . . Kicked . | . . . Crushed . | . . . Highest Temperature 90 | . 90 4 Average Temperature 31 | . 32 4 Received Heat Transfer 276 | . 222 54 Siege Activations . | . . . Martial Activations . | . . . Shielding Activations . | . . . Robots Disrupted . | . . . Combat Hostiles . | . . . Robots Corrupted . | . . . Combat Hostiles . | . . . Parts Fried . | . . . Impact Corruptions . | . . . Robots Melted . | . . . Combat Hostiles . | . . . Parts Melted 2 | . 1 1 Heat Transferred 1814 | 150 600 1064 Parts Sabotaged . | . . . Parts Stolen . | . . . Parts Stripped . | . . . Power Chain Reactions . | . . . Alert | -11 -10 -10 ------- Run | Yrd Mat Sub Maximum Alert Level . | . . . Low Security (%) 100 | 100 100 . Level 1 . | . . . Level 2 . | . . . Level 3 . | . . . Level 4 . | . . . Level 5 . | . . . High Security . | . . . Max Security . | . . . Peak Influence 182 | 15 182 . Initial . | . . . Average 55 | 2 77 . Influence Increases 322 | 25 297 . Destroy 0b10 Robot/C 180 | . 180 . Destroy 0b10 Robot/NC 35 | 25 10 . Destroy Leader 32 | . 32 . Select Force Hacks 60 | . 60 . Lose Combat Pursuer 15 | . 15 . Influence Decreases 322 | 25 130 167 Entered New Map 81 | . . 81 Time Decay 231 | 25 120 86 Lost Part 10 | . 10 . Squads Dispatched 2 | . 2 . Investigation 2 | . 2 . Extermination . | . . . Reinforcement . | . . . Assault . | . . . Garrison . | . . . Intercept . | . . . Searches Triggered . | . . . Construction Impeded . | . . . Haulers Reinforced . | . . . Active Scanning Responses . | . . . Cargo Convoy Interrupts . | . . . Stealth | -11 -10 -10 --------- Run | Yrd Mat Sub Distress Signals 1 | . 1 . Communications Jammed . | . . . Distress Signals . | . . . Times Spotted 20 | . 13 7 Peak Tracking Total 5 | . 5 2 Tactical Retreats 1 | . 1 . Traps | -11 -10 -10 ------- Run | Yrd Mat Sub Traps Triggered 1 | . . 1 Indirectly . | . . . Trap Hack Attempts . | . . . Triggered . | . . . Disarmed . | . . . Reprogrammed . | . . . Reused . | . . . Traps Extracted . | . . . Installed . | . . . Triggered . | . . . Machines | -11 -10 -10 ---------- Run | Yrd Mat Sub Machines Disabled 1 | . . 1 Max in Single Turn 1 | . . 1 Machines Repaired . | . . . Machines Dismantled . | . . . Machines Sabotaged . | . . . Overloaded Fab Kills . | . . . Hacking | -11 -10 -10 --------- Run | Yrd Mat Sub Machines Accessed 3 | . 2 1 Terminals . | . . . Fabricators . | . . . Repair Stations . | . . . Recycling Units 2 | . 2 . Scanalyzers . | . . . Garrison Access . | . . . Total Hacks 6 | . 5 1 Successful 5 | . 4 1 Failed 1 | . 1 . Catastrophic . | . . . Database Lockouts . | . . . Manual 3 | . 3 . Terminals . | . . . Fabricators . | . . . Repair Stations . | . . . Recycling Units 5 | . 5 . Scanalyzers . | . . . Garrison Access . | . . . Terminal Hacks 1 | . . 1 Proto ID Catalog 1 | . . 1 Fabricator Hacks . | . . . Repair Station Hacks . | . . . Recycling Unit Hacks 2 | . 2 . Report Inventory 2 | . 2 . Scanalyzer . | . . . Garrison Access Hacks . | . . . Unauthorized Hacks 2 | . 2 . Terminals . | . . . Fabricators . | . . . Repair Stations . | . . . Recycling Units 2 | . 2 . Tunnel 2 | . 2 . Scanalyzers . | . . . Garrison Access . | . . . Data Cores Recovered . | . . . Used . | . . . Hacking Detections 2 | . 2 . Full Trace Events . | . . . Feedback Events . | . . . Feedback Blocked . | . . . Robot Schematics Acquired . | . . . Robots Built . | . . . Authchips . | . . . Time . | . . . Total Robot Build Rating . | . . . Part Schematics Acquired . | . . . Parts Built . | . . . Authchips . | . . . Time . | . . . Total Part Build Rating . | . . . Parts Repaired . | . . . Time . | . . . Parts Recycled . | . . . Recycled Matter . | . . . Retrieved Matter . | . . . Retrieved Components . | . . . Parts Scanalyzed . | . . . Part Schematics Acquired . | . . . Parts Damaged . | . . . Bothacking | -11 -10 -10 ------------ Run | Yrd Mat Sub Used RIF Installer . | . . . Robots Hacked . | . . . Non-combat . | . . . Combat . | . . . Robot Hacks Applied . | . . . Relay Couplers Released . | . . . Fabnet Peak Effective % . | . . . Robots Rewired . | . . . Allies Hacked . | . . . Hacks Repelled . | . . . Allies | -11 -10 -10 -------- Run | Yrd Mat Sub Total Allies . | . . . Largest Group . | . . . Highest-Rated Group . | . . . Highest-Rated Ally . | . . . Total Orders . | . . . Ally Attacks . | . . . Total Damage . | . . . Kills . | . . . Allies Corrupted . | . . . Allies Melted . | . . . Intel | -11 -10 -10 ------- Run | Yrd Mat Sub Active Infowar (turns) 692 | . 11 681 Structural 692 | . 11 681 Robot Analysis Total . | . . . Derelict Logs Recovered . | . . . Drone Launches . | . . . Drone Recoveries . | . . . Exploration | -11 -10 -10 ------------- Run | Yrd Mat Sub Turns Passed 1051 | 109 261 681 Spaces Moved 553 | 46 99 408 Core 53 | 19 . 34 Treads 324 | 27 99 198 Legs . | . . . Wheels 176 | . . 176 Hover . | . . . Flight . | . . . Fastest Speed 50 | 50 160 80 Average Speed 140 | 154 160 133 Slowest Speed 200 | 200 160 200 Overloaded Moves . | . . . Propulsion Burnouts . | . . . Robots Hopped . | . . . Potential Cave-ins . | . . . Cave-ins Triggered . | . . . Exploration Rate (%) 18 | 5 28 23 Regions Visited 2 Branch Regions 1 Pre-discovered Areas 2 | . 2 . Known Exits Taken . | . . . Unknown Exits Taken 2 | 1 1 . Scrap Searched . | . . . Spaces Dug . | . . . Terrain Destroyed . | . . . Melee . | . . . Projectile . | . . . AOE . | . . . Terrain Rammed . | . . . Walls Destroyed . | . . . Machines Disabled . | . . . Actions | -11 -10 -10 --------- Run | Yrd Mat Sub Total 688 | 65 143 480 Wait 27 | . 5 22 Move 552 | 46 98 408 Hop . | . . . Pick Up 13 | 5 3 5 Fast Attach 8 | 6 1 1 Attach 5 | . 1 4 Detach . | . . . Swap 4 | . . 4 Drop 2 | . . 2 Fire 70 | 8 35 27 Melee 7 | . . 7 Ram . | . . . Kick . | . . . Crush . | . . . Escape Stasis . | . . . Rewire . | . . . Trap . | . . . Miscellaneous . | . . . Route ------- -11/Scrapyard -10/Materials (discovered 3 exits: [*Min x2] / *Sub) -10/Subcaves History --------- Turn | Location | Event 34 | -11/Scrapyard | Discovered new exit (range 14) 110 | -11/Scrapyard | Entered Materials 298 | -10/Materials | Discovered new exit (range 8) 301 | -10/Materials | Build established: Mutant 348 | -10/Materials | Discovered new exit (range 15) 361 | -10/Materials | Discovered new exit (range 7) 371 | -10/Materials | Entered Subcaves 795 | -10/Subcaves | Visited 4L-MR0's lab 806 | -10/Subcaves | Found Tower Shield 911 | -10/Subcaves | Core integrity fell below 50% 988 | -10/Subcaves | Lost 5 parts (1p2n2w) 1045 | -10/Subcaves | Core integrity fell below 20% 1052 | -10/Subcaves | Destroyed by 4C-JKY(R) with Subdweller Machine Gun Last Messages --------------- YB-B8P(R) destroyed. Dropped Sub. Monowheel. Acquired Sub. Monowheel. Ion Engine destroyed. OB-C8P(R) suffers critical hit (Burn). Lgt. Assault Rifle destroyed. Wheel destroyed. OB-C8P(R) destroyed. Acquired 21 matter. Sml. Laser destroyed. Com. Wheel destroyed. GA-U1K(R) suffers critical hit (Burn). Sub. Machine Gun melted. GA-U1K(R) destroyed. Acquired Dirty Datajack. Acquired Battle Rifle. Acquired 10 matter. 82-TCD(R) suffers critical hit (Destroy). Lgt. Treads destroyed. 82-TCD(R) destroyed. Map ----- +----------------------------------------------------+ | ????????### ### ##???????????????????????????? | | ???????#### ## ##???????????????????????????? | | ??????#### ##???????????????????????????? | | ??????### ##???????????????????????????? | | ??????## ##???????????????????????????? | | ??????## ### ###???????????????????????????? | | ??????## ### ###???????????????????????????? | | ??????### ##### #####???#####?????????????????? | | ??????### ##### #####??########???????????????? | | ???????## ######=%& ###### #####??????????????? | | ???????### ##??##### ##### ###??????????????? | | ???????############# #### ##??????????????? | | ????????############ #### ##????????????????? | | ???????????### #### ##????????????????? | | ???????????## #### "##????????????????? | | ???????????## " #### ""###???????????????? | | ???????????###### "" ""###???????????????? | | ???????????###### " " ! "" ##???????????????? | | ???????????????##""""" % "" #######????????????? | | ???????????????####""" ! "" ########???????????? | | ???????????????#####"" " # ## ? ???????? | | ?????????????????#########" " ##???????? | | ??????????????????"#"# ##"" "" ##???????? | | ?????????????????? "" "" "" ## # ###???????? | | ?????????????????? """""" " #### ? ###???????? | | ????????????????? "#"##@ #### ??? ##????????? | | ?????????????????####"###%R ""###?????###????????? | | ?????????????????## "" [""""###????????????????? | | ????????????????? # "" """ ##????????????????? | | ???????????? "##"# " #?????????????? | | ????????????? "###### ##?????????????? | | ????????????? ??"#### ###?????????????? | | ?????????????? ##????????### ###?????????????? | | ??????????????? ##????????### ###?????????????? | | ????????????????????????????? ##?????????????? | | ?????????????????????????????? #?????????????? | | ??????????????????????????????#### ??????????????? | | ??????????????????????????????#####??????????????? | | ?????????????????????????????????????????????????? | | ?????????????????????????????????????????????????? | | ?????????????????????????????????????????????????? | | ?????????????????????????????????????????????????? | | ?????????????????????????????????????????????????? | | ?????????????????????????????????????????????????? | | ?????????????????????????????????????????????????? | | ?????????????????????????????????????????????????? | | ?????????????????????????????????????????????????? | | ?????????????????????????????????????????????????? | | ?????????????????????????????????????????????????? | | ?????????????????????????????????????????????????? | +----------------------------------------------------+ Best States ------------- Heat Dissipation 25 Energy Generation 10 Energy Capacity 250 Matter Stores 300 Matter Capacity 300 Sight Range 16 Terrain Scan Density 10 Evasion (%) 41 Recoil Reduction 2 Item Schematics ----------------- None Robot Schematics ------------------ None Fabricated ------------ Nothing Repaired ---------- Nothing Alien Tech Used ----------------- None Achievements -------------- None Challenges ------------ None Game ------ Seed HoverShiftFocus Manual? 0 Play Time 00:08:20 Cumulative 105.6 hours Start 2025.05.27 @ 23:03:29 End 2025.05.27 @ 23:15:17 Sessions 1 Manual Loads 0 Difficulty Rogue Special Mode None Game No. 111 Rogue 111 Adventurer 0 Explorer 0 Win Type - Total 2 Types 1/0/0/1/0/0/0/0/0/0 Lore% 55 Gallery% 54 Achievement% 48 Wizard Run 0 Options --------- Layout 1 ASCII 0 Keyboard 1 Movement Numpad Keybinds 0 Fullscreen 1 Font 24/Smallcaps Map View 25x17 Zoom Use 84% Tactical HUD 0 Map Filters NONE Filters NONE Steam 1 RUN: 214bbd3b-9665-4a4c-8723-18d37791bfe8